{"text_format":"1","workbook":"xlsx","n_sheets":3,"sheets":["Вариант 1","Вариант 2","Вариант 3"],"not_rendered":{"charts":0,"images":30,"macros":1,"external_links":0,"defined_names":0,"comments":0,"pivot_tables":0},"unopened":[],"bounds":{"document_bytes":16777216,"sheet_cells":100000,"rows_first":2000,"rows_last":500,"rows_between":2000,"halvings":0,"cell_chars":16384,"cell_head_chars":4096},"cells_cut":0,"cells_raw":0,"read":"whole","date_system":"1900"}

{"sheet":"Вариант 1","index":0,"n_rows":132,"n_cols":13,"rows_kept":132,"cut":false,"hidden":false,"merged":[]}
["Кравчук Мария Аркадьевна (учитель математики, МБОУ СОШ №1 г.Охи, Сахалинская область)"]
[]
[null,"Вариант 1"]
[]
[]
["(1 б)","1. График какой из перечисленных функций изображен на рисунке:"]
[]
[]
[]
[]
[]
[]
[]
[]
[]
[null,null,null,null,null,null,null,null,null,"Ответ:",null,null,{"$f":"IF(K16=1,1,0)","v":0}]
[]
[]
[]
[]
["(1 б)","2.  Какое из следующих чисел не входит в область значений функции ",null,null,null,null,null,null,null,null,"(если их несколько, то в ответе между ними поставьте запятые)"]
[]
[]
[null,null,null,null,null,null,null,null,null,"Ответ:",null,null,{"$f":"IF(K24=1.4,1,0)","v":0}]
[]
["(1 б)","3.  Найдите область определения функции "]
[]
[]
[]
[null,null,null,null,null,null,null,null,null,"Ответ:",null,null,{"$f":"IF(K30=4,1,0)","v":0}]
[]
["(1 б)","4.  Решить уравнение: "]
[null,null,null,null,null,null,"Ответ:",null,null,null,null,null,{"$f":"IF(H33=-0.25,1,0)","v":0}]
[]
["(2 б)","5.  Укажите промежуток, которому принадлежит корень уравнения: "]
[]
[]
[]
[null,null,null,null,null,null,null,null,null,"Ответ:",null,null,{"$f":"IF(K39=2,2,0)","v":0}]
[]
[]
["(1 б)","6.  Укажите промежуток, которому принадлежит корень уравнения "]
[]
[]
[]
[null,null,null,null,null,null,null,null,null,"Ответ:",null,null,{"$f":"IF(K46=4,1,0)","v":0}]
[]
["(1 б)","7.  Найдите произведение корней уравнения"]
[]
[]
[null,null,"1) –6;          2) –4;          3) 4;          4) 6.",null,null,null,null,null,null,"Ответ:",null,null,{"$f":"IF(K51=1,1,0)","v":0}]
[]
["(2 б)","8.  Решите уравнение: "]
[null,"(если несколько несколько, то в ответерасположите их в порядке возрастания и между ними поставьте запятые)"]
[null,null,null,null,null,null,"Ответ:",null,null,null,null,null,{"$f":"IF(H55=0.1,2,0)","v":0}]
[]
["(2 б)","9. Найдите решение  системы уравнений  и вычислите произведение  "]
[]
[]
[null,null,null,null,null,null,null,"Ответ:",null,null,null,null,{"$f":"IF(I60=-3,2,0)","v":0}]
[]
[]
[]
[]
[]
[]
[]
[]
[]
[]
[]
[]
[]
[]
[]
[]
[]
[]
[]
[]
[]
[]
[]
[]
[]
[]
[]
[]
[]
[]
[]
[]
[]
[]
[]
[]
[]
[]
[]
[]
[]
[]
[]
[]
[]
[]
[]
[]
[]
[]
[]
[]
[]
[]
[]
[]
[]
[]
[]
[null,null,null,null,"Количество баллов",null,null,null,{"$f":"SUM(M16,M24,M30,M33,M39,M46,M51,M55,M60)","v":0}]
[]
[null,null,null,null,null,"Оценка",null,null,{"$f":"IF(I120=12,5,IF(AND(I120<=11,I120>=9),4,IF(AND(I120<=8,I120>=6),3,IF(I120<6,2))))","v":2}]
[null,null,null,"Баллы"]
[null,null,"№ 1",{"$f":"M16","v":0}]
[null,null,"№ 2",{"$f":"M24","v":0}]
[null,null,"№ 3",{"$f":"M30","v":0}]
[null,null,"№ 4",{"$f":"M33","v":0}]
[null,null,"№ 5",{"$f":"M39","v":0}]
[null,null,"№ 6",{"$f":"M46","v":0}]
[null,null,"№ 7",{"$f":"M51","v":0}]
[null,null,"№ 8",{"$f":"M55","v":0}]
[null,null,"№ 9",{"$f":"M60","v":0}]

{"sheet":"Вариант 2","index":1,"n_rows":132,"n_cols":13,"rows_kept":132,"cut":false,"hidden":false,"merged":[]}
["Кравчук Мария Аркадьевна (учитель математики, МБОУ СОШ №1 г.Охи, Сахалинская область)"]
[]
[null,"Вариант 2"]
[]
[]
["(1 б)","1. График какой из перечисленных функций изображен на рисунке:"]
[]
[]
[]
[]
[]
[]
[]
[]
[]
[null,null,null,null,null,null,null,null,null,"Ответ:",null,null,{"$f":"IF(K16=3,1,0)","v":0}]
[]
[]
[]
[]
["(1 б)","2.  Какое из следующих чисел входит в область значений функции ",null,null,null,null,null,null,null,null,"(если их несколько, то в ответе между ними поставьте запятые)"]
[]
[]
[null,null,null,null,null,null,null,null,null,"Ответ:",null,null,{"$f":"IF(K24=4,1,0)","v":0}]
[]
["(1 б)","3.  Найдите область определения функции "]
[]
[]
[]
[null,null,null,null,null,null,null,null,null,"Ответ:",null,null,{"$f":"IF(K30=2,1,0)","v":0}]
[]
["(1 б)","4.  Решить уравнение: "]
[null,null,null,null,null,null,"Ответ:",null,null,null,null,null,{"$f":"IF(H33=-0.125,1,0)","v":0}]
[]
["(2 б)","5.  Укажите промежуток, которому принадлежит корень уравнения: "]
[]
[]
[]
[null,null,null,null,null,null,null,null,null,"Ответ:",null,null,{"$f":"IF(K39=1,2,0)","v":0}]
[]
[]
["(1 б)","6.  Укажите промежуток, которому принадлежит корень уравнения "]
[]
[]
[]
[null,null,null,null,null,null,null,null,null,"Ответ:",null,null,{"$f":"IF(K46=4,1,0)","v":0}]
[]
["(1 б)","7.  Найдите произведение корней уравнения"]
[]
[null,"1) 6;             2) –12;             3) 12;               4) - 6."]
[null,null,null,null,null,null,null,null,null,"Ответ:",null,null,{"$f":"IF(K51=2,1,0)","v":0}]
[]
["(2 б)","8.  Решите уравнение: "]
[null,"(если несколько несколько, то в ответерасположите их в порядке возрастания и между ними поставьте запятые)"]
[null,null,null,null,null,null,"Ответ:",null,null,null,null,null,{"$f":"IF(H55=0.1,2,0)","v":0}]
[]
["(2 б)","9. Найдите решение  системы уравнений  и вычислите произведение  "]
[]
[]
[null,null,null,null,null,null,null,"Ответ:",null,null,null,null,{"$f":"IF(I60=1,2,0)","v":0}]
[]
[null,"1) 6;",null,"2) 3;  ",null,"3) –6;",null,"4) -2."]
[]
[]
[]
[]
[]
[]
[]
[]
[]
[]
[]
[]
[]
[]
[]
[]
[]
[]
[]
[]
[]
[]
[]
[]
[]
[]
[]
[]
[]
[]
[]
[]
[]
[]
[]
[]
[]
[]
[]
[]
[]
[]
[]
[]
[]
[]
[]
[]
[]
[]
[]
[]
[]
[]
[]
[]
[]
[null,null,null,null,"Количество баллов",null,null,null,{"$f":"SUM(M16,M24,M30,M33,M39,M46,M51,M55,M60)","v":0}]
[]
[null,null,null,null,null,"Оценка",null,null,{"$f":"IF(I120=12,5,IF(AND(I120<=11,I120>=9),4,IF(AND(I120<=8,I120>=6),3,IF(I120<6,2))))","v":2}]
[null,null,null,"Баллы"]
[null,null,"№ 1",{"$f":"K16","v":0}]
[null,null,"№ 2",{"$f":"K24","v":0}]
[null,null,"№ 3",{"$f":"K30","v":0}]
[null,null,"№ 4",{"$f":"H33","v":0}]
[null,null,"№ 5",{"$f":"K39","v":0}]
[null,null,"№ 6",{"$f":"K46","v":0}]
[null,null,"№ 7",{"$f":"K51","v":0}]
[null,null,"№ 8",{"$f":"H55","v":0}]
[null,null,"№ 9",{"$f":"I60","v":0}]

{"sheet":"Вариант 3","index":2,"n_rows":131,"n_cols":13,"rows_kept":131,"cut":false,"hidden":false,"merged":[]}
["Кравчук Мария Аркадьевна (учитель математики, МБОУ СОШ №1 г.Охи, Сахалинская область)"]
[null,"Вариант 3"]
[]
[]
["(1 б)","1. График какой из перечисленных функций изображен на рисунке:"]
[]
[]
[]
[]
[]
[]
[]
[]
[]
[null,null,null,null,null,null,null,null,null,"Ответ:",null,null,{"$f":"IF(K15=2,1,0)","v":0}]
[]
[]
[]
[]
["(1 б)","2.  Какое из следующих чисел не входит в область значений функции ",null,null,null,null,null,null,null,null,"(если их несколько, то в ответе между ними поставьте запятые)"]
[]
[]
[null,null,null,null,null,null,null,null,null,"Ответ:",null,null,{"$f":"IF(K23=1,1,0)","v":0}]
[]
["(1 б)","3.  Найдите область определения функции "]
[]
[]
[]
[null,null,null,null,null,null,null,null,null,"Ответ:",null,null,{"$f":"IF(K29=2,1,0)","v":0}]
[]
["(1 б)","4.  Решить уравнение: "]
[null,null,null,null,null,null,"Ответ:",null,null,null,null,null,{"$f":"IF(H32=-3,1,0)","v":0}]
[]
["(2 б)","5.  Укажите промежуток, которому принадлежит корень уравнения: "]
[]
[]
[]
[null,null,null,null,null,null,null,null,null,"Ответ:",null,null,{"$f":"IF(K38=2,2,0)","v":0}]
[]
[]
["(1 б)","6.  Укажите промежуток, которому принадлежит корень уравнения "]
[]
[]
[]
[null,null,null,null,null,null,null,null,null,"Ответ:",null,null,{"$f":"IF(K45=2,1,0)","v":0}]
[]
["(1 б)","7.  Найдите произведение корней уравнения"]
[]
[null,"1) 7;                 2) 10;                  3) -10;                   4) -7."]
[null,null,null,null,null,null,null,null,null,"Ответ:",null,null,{"$f":"IF(K50=2,1,0)","v":0}]
[]
["(2 б)","8.  Решите уравнение: "]
[null,"(если несколько несколько, то в ответерасположите их в порядке возрастания и между ними поставьте запятые)"]
[null,null,null,null,null,null,"Ответ:",null,null,null,null,null,{"$f":"IF(H54=0.2,2,0)","v":0}]
[]
["(2 б)","9. Найдите решение  системы уравнений  и вычислите произведение  "]
[]
[]
[null,null,null,null,null,null,null,"Ответ:",null,null,null,null,{"$f":"IF(I59=2,2,0)","v":0}]
[]
[null,"1) 0;",null,"2) 1;  ",null,"3) –3;",null,null,"4) -1."]
[]
[]
[]
[]
[]
[]
[]
[]
[]
[]
[]
[]
[]
[]
[]
[]
[]
[]
[]
[]
[]
[]
[]
[]
[]
[]
[]
[]
[]
[]
[]
[]
[]
[]
[]
[]
[]
[]
[]
[]
[]
[]
[]
[]
[]
[]
[]
[]
[]
[]
[]
[]
[]
[]
[]
[]
[]
[null,null,null,null,"Количество баллов",null,null,null,{"$f":"SUM(M15,M23,M29,M32,M38,M45,M50,M54,M59)","v":0}]
[]
[null,null,null,null,null,"Оценка",null,null,{"$f":"IF(I119=12,5,IF(AND(I119<=11,I119>=9),4,IF(AND(I119<=8,I119>=6),3,IF(I119<6,2))))","v":2}]
[null,null,null,"Баллы"]
[null,null,"№ 1",{"$f":"K15","v":0}]
[null,null,"№ 2",{"$f":"K23","v":0}]
[null,null,"№ 3",{"$f":"K29","v":0}]
[null,null,"№ 4",{"$f":"H32","v":0}]
[null,null,"№ 5",{"$f":"K38","v":0}]
[null,null,"№ 6",{"$f":"K45","v":0}]
[null,null,"№ 7",{"$f":"K50","v":0}]
[null,null,"№ 8",{"$f":"H54","v":0}]
[null,null,"№ 9",{"$f":"I59","v":0}]